Body Name,Body,Service division categorisation,Expense Type,Date paid,Transaction Reference,Net,Supplier Name,Redacted/Excluded
South Holland District Council,http://statistics.data.gov.uk/id/local-authority/32UF,Community Development,Grants and Contributions to Outside Bodies- No Service Recei,02/06/2014,IJ00029689,5527.08,Sth Lincolnshire Community Voluntary Service, 
South Holland District Council,http://statistics.data.gov.uk/id/local-authority/32UF,Environmental Services,Agency Staff,05/06/2014,IJ00029738,666.00,247 Personnel Ltd, 
South Holland District Council,http://statistics.data.gov.uk/id/local-authority/32UF,Asset and Property,Agency Staff,05/06/2014,IJ00029792,1157.67,5 Star Facility Management, 
South Holland District Council,http://statistics.data.gov.uk/id/local-authority/32UF,Housing Landlord Manager,Buildings Maintenance - Responsive,05/06/2014,IJ00029793,631.00,B J ROOFING, 
South Holland District Council,http://statistics.data.gov.uk/id/local-authority/32UF,Housing Landlord Manager,Buildings Maintenance - Responsive,05/06/2014,IJ00029794,1945.00,B J ROOFING, 
South Holland District Council,http://statistics.data.gov.uk/id/local-authority/32UF,Housing Landlord Manager,Buildings Maintenance - Responsive,05/06/2014,IJ00029795,1460.00,B J ROOFING, 
South Holland District Council,http://statistics.data.gov.uk/id/local-authority/32UF,Housing Landlord Manager,Buildings Maintenance - Responsive,05/06/2014,IJ00029796,1295.00,B J ROOFING, 
South Holland District Council,http://statistics.data.gov.uk/id/local-authority/32UF,Housing Landlord Manager,Cesspool Empying,05/06/2014,IJ00029824,1262.00,Bates Environmental Ltd, 
South Holland District Council,http://statistics.data.gov.uk/id/local-authority/32UF,Housing Landlord Manager,Drain Repairs,05/06/2014,IJ00029824,3025.00,Bates Environmental Ltd, 
South Holland District Council,http://statistics.data.gov.uk/id/local-authority/32UF,Housing Landlord Manager,Drain Repairs,05/06/2014,IJ00029824,1725.00,Bates Environmental Ltd, 
South Holland District Council,http://statistics.data.gov.uk/id/local-authority/32UF,Environmental Services,Agency Staff,05/06/2014,IJ00029775,522.74,Blue Arrow Ltd, 
South Holland District Council,http://statistics.data.gov.uk/id/local-authority/32UF,Environmental Services,Agency Staff,05/06/2014,IJ00029775,1060.67,Blue Arrow Ltd, 
South Holland District Council,http://statistics.data.gov.uk/id/local-authority/32UF,Environmental Services,Agency Staff,05/06/2014,IJ00029775,1448.84,Blue Arrow Ltd, 
South Holland District Council,http://statistics.data.gov.uk/id/local-authority/32UF,Environmental Services,Agency Staff,05/06/2014,IJ00029775,451.68,Blue Arrow Ltd, 
South Holland District Council,http://statistics.data.gov.uk/id/local-authority/32UF,Capital,Works to Buildings (main Contractor),05/06/2014,IJ00029667,228122.57,Broadgate Homes Limited, 
South Holland District Council,http://statistics.data.gov.uk/id/local-authority/32UF,Capital,Buildings Maintenance - Programmed,05/06/2014,IJ00029790,1867.00,Broadgate Homes Limited, 
South Holland District Council,http://statistics.data.gov.uk/id/local-authority/32UF,Housing Landlord Manager,Fuel & Oil,05/06/2014,IJ00029684,386.96,C H Jones Ltd, 
South Holland District Council,http://statistics.data.gov.uk/id/local-authority/32UF,Environmental Services,Fuel & Oil,05/06/2014,IJ00029684,6.99,C H Jones Ltd, 
South Holland District Council,http://statistics.data.gov.uk/id/local-authority/32UF,Environmental Services,Fuel & Oil,05/06/2014,IJ00029684,461.09,C H Jones Ltd, 
South Holland District Council,http://statistics.data.gov.uk/id/local-authority/32UF,Environmental Services,Fuel & Oil,05/06/2014,IJ00029684,2214.48,C H Jones Ltd, 
South Holland District Council,http://statistics.data.gov.uk/id/local-authority/32UF,Environmental Services,Fuel & Oil,05/06/2014,IJ00029684,809.50,C H Jones Ltd, 
South Holland District Council,http://statistics.data.gov.uk/id/local-authority/32UF,Environmental Services,Fuel & Oil,05/06/2014,IJ00029684,3549.13,C H Jones Ltd, 
South Holland District Council,http://statistics.data.gov.uk/id/local-authority/32UF,Housing Landlord Manager,Fuel & Oil,05/06/2014,IJ00029684,265.74,C H Jones Ltd, 
South Holland District Council,http://statistics.data.gov.uk/id/local-authority/32UF,Housing Landlord Manager,Fuel & Oil,05/06/2014,IJ00029684,130.53,C H Jones Ltd, 
South Holland District Council,http://statistics.data.gov.uk/id/local-authority/32UF,Environmental Services,Fuel & Oil,05/06/2014,IJ00029684,27.83,C H Jones Ltd, 
South Holland District Council,http://statistics.data.gov.uk/id/local-authority/32UF,Environmental Services,Fuel & Oil,05/06/2014,IJ00029684,7.00,C H Jones Ltd, 
South Holland District Council,http://statistics.data.gov.uk/id/local-authority/32UF,Environmental Health,Fuel & Oil,05/06/2014,IJ00029684,44.72,C H Jones Ltd, 
South Holland District Council,http://statistics.data.gov.uk/id/local-authority/32UF,Environmental Services,Fuel & Oil,05/06/2014,IJ00029684,64.71,C H Jones Ltd, 
South Holland District Council,http://statistics.data.gov.uk/id/local-authority/32UF,Housing Landlord Manager,Fuel & Oil,05/06/2014,IJ00029773,344.50,C H Jones Ltd, 
South Holland District Council,http://statistics.data.gov.uk/id/local-authority/32UF,Environmental Services,Fuel & Oil,05/06/2014,IJ00029773,5.51,C H Jones Ltd, 
South Holland District Council,http://statistics.data.gov.uk/id/local-authority/32UF,Environmental Services,Fuel & Oil,05/06/2014,IJ00029773,237.04,C H Jones Ltd, 
South Holland District Council,http://statistics.data.gov.uk/id/local-authority/32UF,Environmental Services,Fuel & Oil,05/06/2014,IJ00029773,1509.87,C H Jones Ltd, 
South Holland District Council,http://statistics.data.gov.uk/id/local-authority/32UF,Environmental Services,Fuel & Oil,05/06/2014,IJ00029773,360.85,C H Jones Ltd, 
South Holland District Council,http://statistics.data.gov.uk/id/local-authority/32UF,Environmental Services,Fuel & Oil,05/06/2014,IJ00029773,2387.68,C H Jones Ltd, 
South Holland District Council,http://statistics.data.gov.uk/id/local-authority/32UF,Housing Landlord Manager,Fuel & Oil,05/06/2014,IJ00029773,237.15,C H Jones Ltd, 
South Holland District Council,http://statistics.data.gov.uk/id/local-authority/32UF,Housing Landlord Manager,Fuel & Oil,05/06/2014,IJ00029773,75.78,C H Jones Ltd, 
South Holland District Council,http://statistics.data.gov.uk/id/local-authority/32UF,Environmental Services,Fuel & Oil,05/06/2014,IJ00029773,25.45,C H Jones Ltd, 
South Holland District Council,http://statistics.data.gov.uk/id/local-authority/32UF,Environmental Services,Fuel & Oil,05/06/2014,IJ00029773,5.51,C H Jones Ltd, 
South Holland District Council,http://statistics.data.gov.uk/id/local-authority/32UF,Environmental Services,Fuel & Oil,05/06/2014,IJ00029773,80.44,C H Jones Ltd, 
South Holland District Council,http://statistics.data.gov.uk/id/local-authority/32UF,Housing Landlord Manager,Sewerage Treatment Works,05/06/2014,IJ00029818,20010.18,C.G. Godfrey Ltd, 
South Holland District Council,http://statistics.data.gov.uk/id/local-authority/32UF,Housing Landlord Manager,Sewerage Treatment Works,05/06/2014,IJ00029819,804.60,C.G. Godfrey Ltd, 
South Holland District Council,http://statistics.data.gov.uk/id/local-authority/32UF,Environmental Services,Fuel & Oil,05/06/2014,IJ00029770,1322.00,Chandlers Oil And Gas, 
South Holland District Council,http://statistics.data.gov.uk/id/local-authority/32UF,Capital,Works to Buildings (main Contractor),05/06/2014,IJ00029668,1820.00,Coda Bulders Ltd, 
South Holland District Council,http://statistics.data.gov.uk/id/local-authority/32UF,Housing Landlord Manager,Professional & Contractors Fees,05/06/2014,IJ00029811,12400.00,DMW Environmental Safety Ltd, 
South Holland District Council,http://statistics.data.gov.uk/id/local-authority/32UF,Housing,Grants and Contributions to Outside Bodies- No Service Recei,05/06/2014,IJ00029669,1325.00,Dolphin Mobility East Mids Ltd, 
South Holland District Council,http://statistics.data.gov.uk/id/local-authority/32UF,Asset and Property,Furniture and Equipment,05/06/2014,IJ00029822,2589.00,E.on Sustainable Energy, 
South Holland District Council,http://statistics.data.gov.uk/id/local-authority/32UF,Housing Landlord Manager,Gas,05/06/2014,IJ00029758,712.83,Espo Gas And Electricity, 
South Holland District Council,http://statistics.data.gov.uk/id/local-authority/32UF,Capital,Works to Buildings (main Contractor),05/06/2014,IJ00029671,1440.00,Focus Consultants 2010 LLP, 
South Holland District Council,http://statistics.data.gov.uk/id/local-authority/32UF,Housing Landlord Manager,Gas Servicing,05/06/2014,IJ00029810,24159.70,Gaswise Services Limited, 
South Holland District Council,http://statistics.data.gov.uk/id/local-authority/32UF,Housing Landlord Manager,Gas Repairs,05/06/2014,IJ00029812,2914.41,Gaswise Services Limited, 
South Holland District Council,http://statistics.data.gov.uk/id/local-authority/32UF,Revs and Bens,Court Costs,05/06/2014,IJ00029825,3642.00,H M C S, 
South Holland District Council,http://statistics.data.gov.uk/id/local-authority/32UF,Revs and Bens,Court Costs,05/06/2014,IJ00029825,54.00,H M C S, 
South Holland District Council,http://statistics.data.gov.uk/id/local-authority/32UF,Housing Landlord Manager,Furniture and Equipment,05/06/2014,IJ00029807,1154.83,Hilti GB Ltd, 
South Holland District Council,http://statistics.data.gov.uk/id/local-authority/32UF,Housing Landlord Manager,Furniture and Equipment,05/06/2014,IJ00029807,722.57,Hilti GB Ltd, 
South Holland District Council,http://statistics.data.gov.uk/id/local-authority/32UF,Environmental Services,Agency Staff,05/06/2014,IJ00029683,363.34,Integrity Plus Ltd, 
South Holland District Council,http://statistics.data.gov.uk/id/local-authority/32UF,Environmental Services,Agency Staff,05/06/2014,IJ00029683,363.34,Integrity Plus Ltd, 
South Holland District Council,http://statistics.data.gov.uk/id/local-authority/32UF,Environmental Services,Agency Staff,05/06/2014,IJ00029774,441.90,Integrity Plus Ltd, 
South Holland District Council,http://statistics.data.gov.uk/id/local-authority/32UF,Environmental Services,Agency Staff,05/06/2014,IJ00029774,446.81,Integrity Plus Ltd, 
South Holland District Council,http://statistics.data.gov.uk/id/local-authority/32UF,Housing Landlord Manager,Buildings Maintenance - Responsive,05/06/2014,IJ00029799,725.00,Justin Doughty, 
South Holland District Council,http://statistics.data.gov.uk/id/local-authority/32UF,Community Development,Professional & Contractors Fees,05/06/2014,IJ00029742,11619.45,Lincolnshire County Council, 
South Holland District Council,http://statistics.data.gov.uk/id/local-authority/32UF,Housing Landlord Manager,Subscriptions to Organisations and Other Bodies,05/06/2014,IJ00029728,2790.00,M3 Consultancy Llp, 
South Holland District Council,http://statistics.data.gov.uk/id/local-authority/32UF,Planning,Professional & Contractors Fees,05/06/2014,IJ00029767,1080.00,MatchTech Group Plc, 
South Holland District Council,http://statistics.data.gov.uk/id/local-authority/32UF,Capital,Works to Buildings (main Contractor),05/06/2014,IJ00029672,5660.00,MCP Environmental, 
South Holland District Council,http://statistics.data.gov.uk/id/local-authority/32UF,Capital,Works to Buildings (main Contractor),05/06/2014,IJ00029673,1050.00,MCP Environmental, 
South Holland District Council,http://statistics.data.gov.uk/id/local-authority/32UF,Housing Landlord Manager,Commercial Vehicle Lease,05/06/2014,IJ00029803,548.44,Northgate Vehicle Hire (East Midlands) Ltd, 
South Holland District Council,http://statistics.data.gov.uk/id/local-authority/32UF,Environmental Services,Commercial Vehicle Lease,05/06/2014,IJ00029690,710.65,NORTHRIDGE FINANCE LTD, 
South Holland District Council,http://statistics.data.gov.uk/id/local-authority/32UF,Housing Landlord Manager,External Painting Repairs,05/06/2014,IJ00029676,6289.00,Novus Property Solutions Ltd, 
South Holland District Council,http://statistics.data.gov.uk/id/local-authority/32UF,Housing Landlord Manager,Buildings Maintenance - Responsive,05/06/2014,IJ00029776,100.00,Portable Elec.Testing Services, 
South Holland District Council,http://statistics.data.gov.uk/id/local-authority/32UF,Housing Landlord Manager,Buildings Maintenance - Responsive,05/06/2014,IJ00029776,100.00,Portable Elec.Testing Services, 
South Holland District Council,http://statistics.data.gov.uk/id/local-authority/32UF,Housing Landlord Manager,Buildings Maintenance - Responsive,05/06/2014,IJ00029776,100.00,Portable Elec.Testing Services, 
South Holland District Council,http://statistics.data.gov.uk/id/local-authority/32UF,Housing Landlord Manager,Buildings Maintenance - Responsive,05/06/2014,IJ00029776,100.00,Portable Elec.Testing Services, 
South Holland District Council,http://statistics.data.gov.uk/id/local-authority/32UF,Housing Landlord Manager,Buildings Maintenance - Responsive,05/06/2014,IJ00029776,100.00,Portable Elec.Testing Services, 
South Holland District Council,http://statistics.data.gov.uk/id/local-authority/32UF,Housing Landlord Manager,Buildings Maintenance - Responsive,05/06/2014,IJ00029776,100.00,Portable Elec.Testing Services, 
South Holland District Council,http://statistics.data.gov.uk/id/local-authority/32UF,Housing Landlord Manager,Buildings Maintenance - Responsive,05/06/2014,IJ00029776,100.00,Portable Elec.Testing Services, 
South Holland District Council,http://statistics.data.gov.uk/id/local-authority/32UF,Housing Landlord Manager,Buildings Maintenance - Responsive,05/06/2014,IJ00029776,100.00,Portable Elec.Testing Services, 
South Holland District Council,http://statistics.data.gov.uk/id/local-authority/32UF,Housing Landlord Manager,Buildings Maintenance - Responsive,05/06/2014,IJ00029776,200.00,Portable Elec.Testing Services, 
South Holland District Council,http://statistics.data.gov.uk/id/local-authority/32UF,Housing Landlord Manager,Buildings Maintenance - Responsive,05/06/2014,IJ00029776,100.00,Portable Elec.Testing Services, 
South Holland District Council,http://statistics.data.gov.uk/id/local-authority/32UF,Housing Landlord Manager,Buildings Maintenance - Responsive,05/06/2014,IJ00029776,100.00,Portable Elec.Testing Services, 
South Holland District Council,http://statistics.data.gov.uk/id/local-authority/32UF,Housing Landlord Manager,Buildings Maintenance - Responsive,05/06/2014,IJ00029776,100.00,Portable Elec.Testing Services, 
South Holland District Council,http://statistics.data.gov.uk/id/local-authority/32UF,Housing Landlord Manager,Buildings Maintenance - Responsive,05/06/2014,IJ00029776,100.00,Portable Elec.Testing Services, 
South Holland District Council,http://statistics.data.gov.uk/id/local-authority/32UF,Housing Landlord Manager,Buildings Maintenance - Responsive,05/06/2014,IJ00029776,100.00,Portable Elec.Testing Services, 
South Holland District Council,http://statistics.data.gov.uk/id/local-authority/32UF,Housing Landlord Manager,Buildings Maintenance - Responsive,05/06/2014,IJ00029776,100.00,Portable Elec.Testing Services, 
South Holland District Council,http://statistics.data.gov.uk/id/local-authority/32UF,Housing Landlord Manager,Buildings Maintenance - Responsive,05/06/2014,IJ00029776,100.00,Portable Elec.Testing Services, 
South Holland District Council,http://statistics.data.gov.uk/id/local-authority/32UF,Housing Landlord Manager,Buildings Maintenance - Responsive,05/06/2014,IJ00029776,100.00,Portable Elec.Testing Services, 
South Holland District Council,http://statistics.data.gov.uk/id/local-authority/32UF,Housing Landlord Manager,Buildings Maintenance - Responsive,05/06/2014,IJ00029776,100.00,Portable Elec.Testing Services, 
South Holland District Council,http://statistics.data.gov.uk/id/local-authority/32UF,Housing Landlord Manager,Buildings Maintenance - Responsive,05/06/2014,IJ00029776,100.00,Portable Elec.Testing Services, 
South Holland District Council,http://statistics.data.gov.uk/id/local-authority/32UF,Housing Landlord Manager,Materials and Consumables,05/06/2014,IJ00029719,946.86,Rexel Uk Ltd, 
South Holland District Council,http://statistics.data.gov.uk/id/local-authority/32UF,Environmental Services,Professional & Contractors Fees,05/06/2014,IJ00029682,3908.89,South Holland Maintenance Ltd, 
South Holland District Council,http://statistics.data.gov.uk/id/local-authority/32UF,Housing Landlord Manager,Buildings Maintenance - Responsive,05/06/2014,IJ00029800,950.00,South Holland Maintenance Ltd, 
South Holland District Council,http://statistics.data.gov.uk/id/local-authority/32UF,Community Development,Grants and Contributions to Outside Bodies- No Service Recei,05/06/2014,IJ00029688,4250.00,South Holland Parish Voluntary Car Scheme, 
South Holland District Council,http://statistics.data.gov.uk/id/local-authority/32UF,Housing Landlord Manager,Void Repairs,05/06/2014,IJ00029744,850.00,Spotless Cleaning, 
South Holland District Council,http://statistics.data.gov.uk/id/local-authority/32UF,Community Development,Grants and Contributions to Outside Bodies- No Service Recei,05/06/2014,IJ00029809,6632.50,Sth Lincolnshire Community Voluntary Service, 
South Holland District Council,http://statistics.data.gov.uk/id/local-authority/32UF,Environmental Services,Agency Staff,05/06/2014,IJ00029760,506.88,The Best Connection Group Ltd, 
South Holland District Council,http://statistics.data.gov.uk/id/local-authority/32UF,Capital,Works to Buildings (main Contractor),05/06/2014,IJ00029687,5421.00,The Keepmoat Grp t a The Apollo Grp, 
South Holland District Council,http://statistics.data.gov.uk/id/local-authority/32UF,Community Development,Buildings Maintenance - Responsive,05/06/2014,IJ00029821,630.00,Tyrrell Contractors Ltd, 
South Holland District Council,http://statistics.data.gov.uk/id/local-authority/32UF,Environmental Services,Tyres,05/06/2014,IJ00029697,4182.18,Vaculug Traction Tyres Ltd, 
South Holland District Council,http://statistics.data.gov.uk/id/local-authority/32UF,Housing Landlord Manager,Agency Staff,05/06/2014,IJ00029746,851.00,Venn Group Limited, 
South Holland District Council,http://statistics.data.gov.uk/id/local-authority/32UF,Housing Landlord Manager,Agency Staff,05/06/2014,IJ00029747,690.00,Venn Group Limited, 
South Holland District Council,http://statistics.data.gov.uk/id/local-authority/32UF,Housing Landlord Manager,Agency Staff,05/06/2014,IJ00029752,517.50,Venn Group Limited, 
South Holland District Council,http://statistics.data.gov.uk/id/local-authority/32UF,Housing Landlord Manager,Agency Staff,05/06/2014,IJ00029755,851.00,Venn Group Limited, 
South Holland District Council,http://statistics.data.gov.uk/id/local-authority/32UF,Planning,Professional & Contractors Fees,11/06/2014,IJ00030006,2960.00,Lincolnshire County Council County Fund, 
South Holland District Council,http://statistics.data.gov.uk/id/local-authority/32UF,Capital,Works to Buildings (main Contractor),12/06/2014,IJ00029957,11982.75,Aaron Services Ltd, 
South Holland District Council,http://statistics.data.gov.uk/id/local-authority/32UF,Housing Landlord Manager,Gas Servicing,12/06/2014,IJ00029964,20764.17,Aaron Services Ltd, 
South Holland District Council,http://statistics.data.gov.uk/id/local-authority/32UF,Economic Development,Grants and Contributions to Outside Bodies- No Service Recei,12/06/2014,IJ00030002,1220.00,Airtek UK Limited, 
South Holland District Council,http://statistics.data.gov.uk/id/local-authority/32UF,Finance,Grants and Contributions to Outside Bodies- No Service Recei,12/06/2014,IJ00030065,780.00,Arb-Core Tree Care Ltd, 
South Holland District Council,http://statistics.data.gov.uk/id/local-authority/32UF,Capital,Works to Buildings (main Contractor),12/06/2014,IJ00029875,3385.00,Belmont, 
South Holland District Council,http://statistics.data.gov.uk/id/local-authority/32UF,Environmental Services,Agency Staff,12/06/2014,IJ00030088,228.38,Blue Arrow Ltd, 
South Holland District Council,http://statistics.data.gov.uk/id/local-authority/32UF,Environmental Services,Agency Staff,12/06/2014,IJ00030088,1781.16,Blue Arrow Ltd, 
South Holland District Council,http://statistics.data.gov.uk/id/local-authority/32UF,Environmental Services,Agency Staff,12/06/2014,IJ00030088,1860.41,Blue Arrow Ltd, 
South Holland District Council,http://statistics.data.gov.uk/id/local-authority/32UF,Environmental Services,Agency Staff,12/06/2014,IJ00030088,289.28,Blue Arrow Ltd, 
South Holland District Council,http://statistics.data.gov.uk/id/local-authority/32UF,Environmental Services,Commercial Vehicle Lease,12/06/2014,IJ00029998,4726.52,C P Davidson & Sons Ltd, 
South Holland District Council,http://statistics.data.gov.uk/id/local-authority/32UF,Environmental Services,Maintenance,12/06/2014,IJ00030027,4364.53,C P Davidson & Sons Ltd, 
South Holland District Council,http://statistics.data.gov.uk/id/local-authority/32UF,Environmental Services,Maintenance,12/06/2014,IJ00030027,6546.77,C P Davidson & Sons Ltd, 
South Holland District Council,http://statistics.data.gov.uk/id/local-authority/32UF,Environmental Services,Maintenance,12/06/2014,IJ00030027,6550.46,C P Davidson & Sons Ltd, 
South Holland District Council,http://statistics.data.gov.uk/id/local-authority/32UF,Environmental Services,Maintenance,12/06/2014,IJ00030027,164.38,C P Davidson & Sons Ltd, 
South Holland District Council,http://statistics.data.gov.uk/id/local-authority/32UF,Housing,Staff Training Expenses,12/06/2014,IJ00030097,937.50,Civica Limited, 
South Holland District Council,http://statistics.data.gov.uk/id/local-authority/32UF,Finance,Compass Point Business Services,12/06/2014,IJ00029895,248630.66,Compass Point Business Srvcs (East Coast) Ltd, 
South Holland District Council,http://statistics.data.gov.uk/id/local-authority/32UF,Community Development,Performers and Entertainers Fees,12/06/2014,IJ00029968,1350.00,Dave Jackson, 
South Holland District Council,http://statistics.data.gov.uk/id/local-authority/32UF,Housing,Grants and Contributions to Outside Bodies- No Service Recei,12/06/2014,IJ00030014,1325.00,Dolphin Mobility East Mids Ltd, 
South Holland District Council,http://statistics.data.gov.uk/id/local-authority/32UF,Asset and Property,Other Miscellaneous Expenses,12/06/2014,IJ00030062,6687.45,E.on Sustainable Energy, 
South Holland District Council,http://statistics.data.gov.uk/id/local-authority/32UF,Capital,Works to Buildings (main Contractor),12/06/2014,IJ00029870,84018.00,Foster Property Maintenance Ltd, 
South Holland District Council,http://statistics.data.gov.uk/id/local-authority/32UF,Capital,Works to Buildings (main Contractor),12/06/2014,IJ00029871,6517.00,Foster Property Maintenance Ltd, 
South Holland District Council,http://statistics.data.gov.uk/id/local-authority/32UF,Community Development,Performers and Entertainers Fees,12/06/2014,IJ00029973,780.00,Funhouse Comedy, 
South Holland District Council,http://statistics.data.gov.uk/id/local-authority/32UF,Revs and Bens,Professional & Contractors Fees,12/06/2014,IJ00030010,2750.00,Inform CPI Ltd, 
South Holland District Council,http://statistics.data.gov.uk/id/local-authority/32UF,Environmental Services,Agency Staff,12/06/2014,IJ00030087,299.51,Integrity Plus Ltd, 
South Holland District Council,http://statistics.data.gov.uk/id/local-authority/32UF,Environmental Services,Agency Staff,12/06/2014,IJ00030087,363.34,Integrity Plus Ltd, 
South Holland District Council,http://statistics.data.gov.uk/id/local-authority/32UF,Finance,Grants and Contributions to Outside Bodies- No Service Recei,12/06/2014,IJ00030067,843.57,James Chadwick, 
South Holland District Council,http://statistics.data.gov.uk/id/local-authority/32UF,Capital,Works to Buildings (main Contractor),12/06/2014,IJ00030063,82218.24,Kensa Contracting Ltd, 
South Holland District Council,http://statistics.data.gov.uk/id/local-authority/32UF,Economic Development,Professional & Contractors Fees,12/06/2014,IJ00029838,1702.50,Lava Marketing Communications Limited, 
South Holland District Council,http://statistics.data.gov.uk/id/local-authority/32UF,Environmental Services,Furniture and Equipment,12/06/2014,IJ00030029,951.89,Lincolnshire Chamber Of Commerce & Industry, 
South Holland District Council,http://statistics.data.gov.uk/id/local-authority/32UF,Environmental Services,Telephones,12/06/2014,IJ00030029,190.37,Lincolnshire Chamber Of Commerce & Industry, 
South Holland District Council,http://statistics.data.gov.uk/id/local-authority/32UF,Community Development,Fixtures And Fittings,12/06/2014,IJ00030029,190.37,Lincolnshire Chamber Of Commerce & Industry, 
South Holland District Council,http://statistics.data.gov.uk/id/local-authority/32UF,Community Development,Furniture and Equipment,12/06/2014,IJ00030029,190.37,Lincolnshire Chamber Of Commerce & Industry, 
South Holland District Council,http://statistics.data.gov.uk/id/local-authority/32UF,Planning,Professional & Contractors Fees,12/06/2014,IJ00030028,2960.00,Lincolnshire County Council, 
South Holland District Council,http://statistics.data.gov.uk/id/local-authority/32UF,Community Development,Buildings Maintenance - Responsive,12/06/2014,IJ00029869,2302.50,LINCOLNSHIRE MASONRY LTD, 
South Holland District Council,http://statistics.data.gov.uk/id/local-authority/32UF,Community Development,Buildings Maintenance - Programmed,12/06/2014,IJ00029967,2300.00,LINCOLNSHIRE MASONRY LTD, 
South Holland District Council,http://statistics.data.gov.uk/id/local-authority/32UF,Finance,Professional & Contractors Fees,12/06/2014,IJ00030102,569.35,Lloyds TSB, 
South Holland District Council,http://statistics.data.gov.uk/id/local-authority/32UF,Housing,Grants and Contributions to Outside Bodies- No Service Recei,12/06/2014,IJ00029873,3290.00,M E Goodyear Property Maintenance, 
South Holland District Council,http://statistics.data.gov.uk/id/local-authority/32UF,Housing,Grants and Contributions to Outside Bodies- No Service Recei,12/06/2014,IJ00029876,2669.00,M E Goodyear Property Maintenance, 
South Holland District Council,http://statistics.data.gov.uk/id/local-authority/32UF,Housing Landlord Manager,Void Repairs,12/06/2014,IJ00029978,4903.46,M Yould Plumbing and Heating Ltd, 
South Holland District Council,http://statistics.data.gov.uk/id/local-authority/32UF,Housing Landlord Manager,Void Repairs,12/06/2014,IJ00029980,5910.62,M Yould Plumbing and Heating Ltd, 
South Holland District Council,http://statistics.data.gov.uk/id/local-authority/32UF,Housing Landlord Manager,Void Repairs,12/06/2014,IJ00029981,5670.00,M Yould Plumbing and Heating Ltd, 
South Holland District Council,http://statistics.data.gov.uk/id/local-authority/32UF,Housing Landlord Manager,Void Repairs,12/06/2014,IJ00029983,4800.00,M Yould Plumbing and Heating Ltd, 
South Holland District Council,http://statistics.data.gov.uk/id/local-authority/32UF,Housing Landlord Manager,Void Repairs,12/06/2014,IJ00030016,6314.57,M Yould Plumbing and Heating Ltd, 
South Holland District Council,http://statistics.data.gov.uk/id/local-authority/32UF,Planning,Professional & Contractors Fees,12/06/2014,IJ00029893,900.00,MatchTech Group Plc, 
South Holland District Council,http://statistics.data.gov.uk/id/local-authority/32UF,Capital,Works to Buildings (main Contractor),12/06/2014,IJ00029874,1809.95,MPL HOME IMPROVEMENTS SERVICES LINCS LTD, 
South Holland District Council,http://statistics.data.gov.uk/id/local-authority/32UF,Community Development,Furniture and Equipment,12/06/2014,IJ00030083,680.00,Newflame Fire Equipment Co.Ltd, 
South Holland District Council,http://statistics.data.gov.uk/id/local-authority/32UF,Environmental Services,Professional & Contractors Fees,12/06/2014,IJ00029959,1237.04,Ocs Group Uk Limited TA Cannon, 
South Holland District Council,http://statistics.data.gov.uk/id/local-authority/32UF,Economic Development,Grants and Contributions to Outside Bodies- No Service Recei,12/06/2014,IJ00029836,600.00,Peakhill Assocaites, 
South Holland District Council,http://statistics.data.gov.uk/id/local-authority/32UF,Community Development,Performers and Entertainers Fees,12/06/2014,IJ00029965,1745.33,Picturehouse Entertainment Limited, 
South Holland District Council,http://statistics.data.gov.uk/id/local-authority/32UF,Planning,Grants and Contributions to Outside Bodies- No Service Recei,12/06/2014,IJ00030005,1000.00,Plann.It Limited, 
South Holland District Council,http://statistics.data.gov.uk/id/local-authority/32UF,Economic Development,Grants and Contributions to Outside Bodies- No Service Recei,12/06/2014,IJ00029867,4141.25,Quarterbridge Project Management Limited, 
South Holland District Council,http://statistics.data.gov.uk/id/local-authority/32UF,Economic Development,Grants and Contributions to Outside Bodies- No Service Recei,12/06/2014,IJ00030015,7300.00,RAB Precision Engineering Ltd, 
South Holland District Council,http://statistics.data.gov.uk/id/local-authority/32UF,Housing Landlord Manager,Void Repairs,12/06/2014,IJ00030092,5949.44,Response Construction Maintenance Limited, 
South Holland District Council,http://statistics.data.gov.uk/id/local-authority/32UF,Housing Landlord Manager,Void Repairs,12/06/2014,IJ00030094,5338.23,Response Construction Maintenance Limited, 
South Holland District Council,http://statistics.data.gov.uk/id/local-authority/32UF,Housing Landlord Manager,Void Repairs,12/06/2014,IJ00030091,1250.00,Robert Dunmore, 
South Holland District Council,http://statistics.data.gov.uk/id/local-authority/32UF,Community Development,Payments to Bodies in Respect of Income Collected,12/06/2014,IJ00029991,610.00,RSPB South Lincs Local Group, 
South Holland District Council,http://statistics.data.gov.uk/id/local-authority/32UF,Community Development,Commission,12/06/2014,IJ00029991,-50.83,RSPB South Lincs Local Group, 
South Holland District Council,http://statistics.data.gov.uk/id/local-authority/32UF,Economic Development,Grants and Contributions to Outside Bodies- No Service Recei,12/06/2014,IJ00030003,2380.00,S G Enterprises t a Boston Blinds, 
South Holland District Council,http://statistics.data.gov.uk/id/local-authority/32UF,Economic Development,Grants and Contributions to Outside Bodies- No Service Recei,12/06/2014,IJ00030004,2500.00,Scotts Precision Manufacturing Limited, 
South Holland District Council,http://statistics.data.gov.uk/id/local-authority/32UF,Economic Development,Grants and Contributions to Outside Bodies- No Service Recei,12/06/2014,IJ00030001,5000.00,Select Timber Products Limited, 
South Holland District Council,http://statistics.data.gov.uk/id/local-authority/32UF,Community Development,Grants and Contributions to Outside Bodies- No Service Recei,12/06/2014,IJ00029832,3150.00,South Holland In Bloom, 
South Holland District Council,http://statistics.data.gov.uk/id/local-authority/32UF,Community Development,Electricity,12/06/2014,IJ00029974,2100.99,Southern Electric, 
South Holland District Council,http://statistics.data.gov.uk/id/local-authority/32UF,Housing Landlord Manager,Electricity,12/06/2014,IJ00030036,670.39,Southern Electric, 
South Holland District Council,http://statistics.data.gov.uk/id/local-authority/32UF,Housing Landlord Manager,Electricity,12/06/2014,IJ00030052,640.35,Southern Electric, 
South Holland District Council,http://statistics.data.gov.uk/id/local-authority/32UF,Asset and Property,Electricity,12/06/2014,IJ00030054,2111.19,Southern Electric, 
South Holland District Council,http://statistics.data.gov.uk/id/local-authority/32UF,Asset and Property,Electricity,12/06/2014,IJ00030058,4226.96,Southern Electric, 
South Holland District Council,http://statistics.data.gov.uk/id/local-authority/32UF,Housing Landlord Manager,Void Repairs,12/06/2014,IJ00029984,1150.00,Spotless Cleaning, 
South Holland District Council,http://statistics.data.gov.uk/id/local-authority/32UF,Environmental Services,Tyres,12/06/2014,IJ00029949,4353.85,Vaculug Traction Tyres Ltd, 
South Holland District Council,http://statistics.data.gov.uk/id/local-authority/32UF,Environmental Services,Professional & Contractors Fees,12/06/2014,IJ00030012,540.00,West & East Anglia Asbestos Removals Ltd, 
South Holland District Council,http://statistics.data.gov.uk/id/local-authority/32UF,Capital,Works to Buildings (main Contractor),19/06/2014,IJ00030400,616.00,1st Choice Insulations Ltd, 
South Holland District Council,http://statistics.data.gov.uk/id/local-authority/32UF,Environmental Services,Agency Staff,19/06/2014,IJ00030385,459.00,247 Personnel Ltd, 
South Holland District Council,http://statistics.data.gov.uk/id/local-authority/32UF,Environmental Services,Agency Staff,19/06/2014,IJ00030385,67.50,247 Personnel Ltd, 
South Holland District Council,http://statistics.data.gov.uk/id/local-authority/32UF,Housing Landlord Manager,Buildings Maintenance - Responsive,19/06/2014,IJ00030105,31527.86,A Coupland (Surfacing) Ltd, 
South Holland District Council,http://statistics.data.gov.uk/id/local-authority/32UF,Housing Landlord Manager,Materials and Consumables,19/06/2014,IJ00030329,1375.00,Alvey Fireplaces Ltd, 
South Holland District Council,http://statistics.data.gov.uk/id/local-authority/32UF,Housing Landlord Manager,Materials and Consumables,19/06/2014,IJ00030329,1375.00,Alvey Fireplaces Ltd, 
South Holland District Council,http://statistics.data.gov.uk/id/local-authority/32UF,Capital,Professional Fees,19/06/2014,IJ00030391,7100.00,Applause IT, 
South Holland District Council,http://statistics.data.gov.uk/id/local-authority/32UF,Capital,Professional Fees,19/06/2014,IJ00030393,6650.00,Applause IT, 
South Holland District Council,http://statistics.data.gov.uk/id/local-authority/32UF,Capital,Professional Fees,19/06/2014,IJ00030394,4031.25,Applause IT, 
South Holland District Council,http://statistics.data.gov.uk/id/local-authority/32UF,Housing Landlord Manager,Computer Software Licence Costs,19/06/2014,IJ00030297,2436.00,Automico Limited, 
South Holland District Council,http://statistics.data.gov.uk/id/local-authority/32UF,Housing Landlord Manager,Materials and Consumables,19/06/2014,IJ00030317,121.30,B Ayres, 
South Holland District Council,http://statistics.data.gov.uk/id/local-authority/32UF,Housing Landlord Manager,Materials and Consumables,19/06/2014,IJ00030317,509.40,B Ayres, 
South Holland District Council,http://statistics.data.gov.uk/id/local-authority/32UF,Housing Landlord Manager,Void Repairs,19/06/2014,IJ00030322,530.00,B J ROOFING, 
South Holland District Council,http://statistics.data.gov.uk/id/local-authority/32UF,Housing Landlord Manager,Cesspool Empying,19/06/2014,IJ00030222,6582.00,Bates Environmental Ltd, 
South Holland District Council,http://statistics.data.gov.uk/id/local-authority/32UF,Housing Landlord Manager,Cesspool Empying,19/06/2014,IJ00030222,1395.00,Bates Environmental Ltd, 
South Holland District Council,http://statistics.data.gov.uk/id/local-authority/32UF,Environmental Services,Agency Staff,19/06/2014,IJ00030139,593.77,Blue Arrow Ltd, 
South Holland District Council,http://statistics.data.gov.uk/id/local-authority/32UF,Environmental Services,Agency Staff,19/06/2014,IJ00030139,1207.85,Blue Arrow Ltd, 
South Holland District Council,http://statistics.data.gov.uk/id/local-authority/32UF,Environmental Services,Agency Staff,19/06/2014,IJ00030139,1498.66,Blue Arrow Ltd, 
South Holland District Council,http://statistics.data.gov.uk/id/local-authority/32UF,Environmental Services,Agency Staff,19/06/2014,IJ00030139,76.13,Blue Arrow Ltd, 
South Holland District Council,http://statistics.data.gov.uk/id/local-authority/32UF,Environmental Services,Materials and Consumables,19/06/2014,IJ00030193,1205.37,Bpi Recycled Products, 
South Holland District Council,http://statistics.data.gov.uk/id/local-authority/32UF,Environmental Services,Materials and Consumables,19/06/2014,IJ00030199,787.50,Bpi Recycled Products, 
South Holland District Council,http://statistics.data.gov.uk/id/local-authority/32UF,Economic Development,Professional & Contractors Fees,19/06/2014,IJ00030312,3460.37,Breckland Council, 
South Holland District Council,http://statistics.data.gov.uk/id/local-authority/32UF,Finance,Telephones,19/06/2014,IJ00030108,5678.66,British Telecom Plc, 
South Holland District Council,http://statistics.data.gov.uk/id/local-authority/32UF,Building Control,Buildings Maintenance - Responsive,19/06/2014,IJ00030113,504.00,Brooks (Spalding) Ltd, 
South Holland District Council,http://statistics.data.gov.uk/id/local-authority/32UF,Housing Landlord Manager,Fuel & Oil,19/06/2014,IJ00030330,911.51,C H Jones Ltd, 
South Holland District Council,http://statistics.data.gov.uk/id/local-authority/32UF,Environmental Services,Fuel & Oil,19/06/2014,IJ00030330,12.10,C H Jones Ltd, 
South Holland District Council,http://statistics.data.gov.uk/id/local-authority/32UF,Environmental Services,Fuel & Oil,19/06/2014,IJ00030330,270.55,C H Jones Ltd, 
South Holland District Council,http://statistics.data.gov.uk/id/local-authority/32UF,Environmental Services,Fuel & Oil,19/06/2014,IJ00030330,1956.57,C H Jones Ltd, 
South Holland District Council,http://statistics.data.gov.uk/id/local-authority/32UF,Environmental Services,Fuel & Oil,19/06/2014,IJ00030330,738.14,C H Jones Ltd, 
South Holland District Council,http://statistics.data.gov.uk/id/local-authority/32UF,Environmental Services,Fuel & Oil,19/06/2014,IJ00030330,3156.06,C H Jones Ltd, 
South Holland District Council,http://statistics.data.gov.uk/id/local-authority/32UF,Housing Landlord Manager,Fuel & Oil,19/06/2014,IJ00030330,277.52,C H Jones Ltd, 
South Holland District Council,http://statistics.data.gov.uk/id/local-authority/32UF,Housing Landlord Manager,Fuel & Oil,19/06/2014,IJ00030330,153.56,C H Jones Ltd, 
South Holland District Council,http://statistics.data.gov.uk/id/local-authority/32UF,Environmental Services,Fuel & Oil,19/06/2014,IJ00030330,32.17,C H Jones Ltd, 
South Holland District Council,http://statistics.data.gov.uk/id/local-authority/32UF,Environmental Services,Fuel & Oil,19/06/2014,IJ00030330,12.10,C H Jones Ltd, 
South Holland District Council,http://statistics.data.gov.uk/id/local-authority/32UF,Environmental Health,Fuel & Oil,19/06/2014,IJ00030330,50.89,C H Jones Ltd, 
South Holland District Council,http://statistics.data.gov.uk/id/local-authority/32UF,Environmental Services,Fuel & Oil,19/06/2014,IJ00030330,81.27,C H Jones Ltd, 
South Holland District Council,http://statistics.data.gov.uk/id/local-authority/32UF,Housing Landlord Manager,Buildings Maintenance - Responsive,19/06/2014,IJ00030226,802.09,C.G. Godfrey Ltd, 
South Holland District Council,http://statistics.data.gov.uk/id/local-authority/32UF,Housing Landlord Manager,Buildings Maintenance - Responsive,19/06/2014,IJ00030253,802.09,C.G. Godfrey Ltd, 
South Holland District Council,http://statistics.data.gov.uk/id/local-authority/32UF,Housing Landlord Manager,Buildings Maintenance - Responsive,19/06/2014,IJ00030251,802.09,C.G. Godfrey Ltd, 
South Holland District Council,http://statistics.data.gov.uk/id/local-authority/32UF,Asset and Property,Buildings Maintenance - Responsive,19/06/2014,IJ00030202,510.71,CHEM AQUA, 
South Holland District Council,http://statistics.data.gov.uk/id/local-authority/32UF,Asset and Property,Buildings Maintenance - Responsive,19/06/2014,IJ00030204,510.71,CHEM AQUA, 
South Holland District Council,http://statistics.data.gov.uk/id/local-authority/32UF,Community Development,Buildings Maintenance - Responsive,19/06/2014,IJ00030172,510.71,CHEM AQUA, 
South Holland District Council,http://statistics.data.gov.uk/id/local-authority/32UF,Community Development,Buildings Maintenance - Responsive,19/06/2014,IJ00030175,510.71,CHEM AQUA, 
South Holland District Council,http://statistics.data.gov.uk/id/local-authority/32UF,Community Development,Fixtures And Fittings,19/06/2014,IJ00030111,520.71,CHEM AQUA, 
South Holland District Council,http://statistics.data.gov.uk/id/local-authority/32UF,Community Development,Buildings Maintenance - Responsive,19/06/2014,IJ00030170,510.71,CHEM AQUA, 
South Holland District Council,http://statistics.data.gov.uk/id/local-authority/32UF,Environmental Services,Advertising - Events,19/06/2014,IJ00030167,1504.00,Classic Printers, 
South Holland District Council,http://statistics.data.gov.uk/id/local-authority/32UF,Community Development,Other Miscellaneous Expenses,19/06/2014,IJ00030189,750.00,Cook Connect Ltd, 
South Holland District Council,http://statistics.data.gov.uk/id/local-authority/32UF,Community Development,Grants and Contributions- Where a Service is Received,19/06/2014,IJ00030244,1350.00,Cook Connect Ltd, 
South Holland District Council,http://statistics.data.gov.uk/id/local-authority/32UF,Capital,Works to Buildings (main Contractor),19/06/2014,IJ00030365,30616.94,D Brown (Building Contractors) Ltd, 
South Holland District Council,http://statistics.data.gov.uk/id/local-authority/32UF,Planning,Telephones,19/06/2014,IJ00030345,5.50,DAISY COMMUNICATIONS LTD, 
South Holland District Council,http://statistics.data.gov.uk/id/local-authority/32UF,Housing Landlord Manager,Telephones,19/06/2014,IJ00030345,913.70,DAISY COMMUNICATIONS LTD, 
South Holland District Council,http://statistics.data.gov.uk/id/local-authority/32UF,Finance,Telephones,19/06/2014,IJ00030345,836.98,DAISY COMMUNICATIONS LTD, 
South Holland District Council,http://statistics.data.gov.uk/id/local-authority/32UF,Environmental Health,Telephones,19/06/2014,IJ00030345,10.99,DAISY COMMUNICATIONS LTD, 
South Holland District Council,http://statistics.data.gov.uk/id/local-authority/32UF,Asset and Property,Telephones,19/06/2014,IJ00030345,21.98,DAISY COMMUNICATIONS LTD, 
South Holland District Council,http://statistics.data.gov.uk/id/local-authority/32UF,Building Control,Telephones,19/06/2014,IJ00030345,5.49,DAISY COMMUNICATIONS LTD, 
South Holland District Council,http://statistics.data.gov.uk/id/local-authority/32UF,Environmental Services,Telephones,19/06/2014,IJ00030345,10.99,DAISY COMMUNICATIONS LTD, 
South Holland District Council,http://statistics.data.gov.uk/id/local-authority/32UF,Housing Landlord Manager,Telephones,19/06/2014,IJ00030345,11.01,DAISY COMMUNICATIONS LTD, 
South Holland District Council,http://statistics.data.gov.uk/id/local-authority/32UF,Environmental Services,Telephones,19/06/2014,IJ00030345,11.62,DAISY COMMUNICATIONS LTD, 
South Holland District Council,http://statistics.data.gov.uk/id/local-authority/32UF,Environmental Services,Telephones,19/06/2014,IJ00030345,11.25,DAISY COMMUNICATIONS LTD, 
South Holland District Council,http://statistics.data.gov.uk/id/local-authority/32UF,Environmental Health,Telephones,19/06/2014,IJ00030345,10.99,DAISY COMMUNICATIONS LTD, 
South Holland District Council,http://statistics.data.gov.uk/id/local-authority/32UF,Democratic Services,Telephones,19/06/2014,IJ00030345,10.99,DAISY COMMUNICATIONS LTD, 
South Holland District Council,http://statistics.data.gov.uk/id/local-authority/32UF,Housing Landlord Manager,Telephones,19/06/2014,IJ00030345,10.99,DAISY COMMUNICATIONS LTD, 
South Holland District Council,http://statistics.data.gov.uk/id/local-authority/32UF,Asset and Property,Telephones,19/06/2014,IJ00030345,10.99,DAISY COMMUNICATIONS LTD, 
South Holland District Council,http://statistics.data.gov.uk/id/local-authority/32UF,Housing Landlord Manager,Telephones,19/06/2014,IJ00030345,16.72,DAISY COMMUNICATIONS LTD, 
South Holland District Council,http://statistics.data.gov.uk/id/local-authority/32UF,Finance,Telephones,19/06/2014,IJ00030345,10.99,DAISY COMMUNICATIONS LTD, 
South Holland District Council,http://statistics.data.gov.uk/id/local-authority/32UF,Finance,Telephones,19/06/2014,IJ00030345,143.05,DAISY COMMUNICATIONS LTD, 
South Holland District Council,http://statistics.data.gov.uk/id/local-authority/32UF,Finance,Telephones,19/06/2014,IJ00030345,21.98,DAISY COMMUNICATIONS LTD, 
South Holland District Council,http://statistics.data.gov.uk/id/local-authority/32UF,Finance,Telephones,19/06/2014,IJ00030345,10.99,DAISY COMMUNICATIONS LTD, 
South Holland District Council,http://statistics.data.gov.uk/id/local-authority/32UF,Community Development,Telephones,19/06/2014,IJ00030345,10.99,DAISY COMMUNICATIONS LTD, 
South Holland District Council,http://statistics.data.gov.uk/id/local-authority/32UF,Community Development,Telephones,19/06/2014,IJ00030345,44.20,DAISY COMMUNICATIONS LTD, 
South Holland District Council,http://statistics.data.gov.uk/id/local-authority/32UF,Community Development,Telephones,19/06/2014,IJ00030345,22.11,DAISY COMMUNICATIONS LTD, 
South Holland District Council,http://statistics.data.gov.uk/id/local-authority/32UF,Capital,Purchase of Vehicles,19/06/2014,IJ00030346,128435.00,Dennis Eagle, 
South Holland District Council,http://statistics.data.gov.uk/id/local-authority/32UF,Capital,Purchase of Vehicles,19/06/2014,IJ00030347,128435.00,Dennis Eagle, 
South Holland District Council,http://statistics.data.gov.uk/id/local-authority/32UF,Capital,Purchase of Vehicles,19/06/2014,IJ00030348,128435.00,Dennis Eagle, 
South Holland District Council,http://statistics.data.gov.uk/id/local-authority/32UF,Capital,Purchase of Vehicles,19/06/2014,IJ00030349,128435.00,Dennis Eagle, 
South Holland District Council,http://statistics.data.gov.uk/id/local-authority/32UF,Capital,Purchase of Vehicles,19/06/2014,IJ00030350,128435.00,Dennis Eagle, 
South Holland District Council,http://statistics.data.gov.uk/id/local-authority/32UF,Capital,Purchase of Vehicles,19/06/2014,IJ00030351,128435.00,Dennis Eagle, 
South Holland District Council,http://statistics.data.gov.uk/id/local-authority/32UF,Capital,Purchase of Vehicles,19/06/2014,IJ00030352,128435.00,Dennis Eagle, 
South Holland District Council,http://statistics.data.gov.uk/id/local-authority/32UF,Housing Landlord Manager,Void Repairs,19/06/2014,IJ00030228,6455.00,Elite Decor UK Limited, 
South Holland District Council,http://statistics.data.gov.uk/id/local-authority/32UF,Community Development,Film and Entertainment Costs,19/06/2014,IJ00030371,605.41,Entertainment One Uk Ltd, 
South Holland District Council,http://statistics.data.gov.uk/id/local-authority/32UF,Community Development,Gas,19/06/2014,IJ00030355,583.27,Espo Gas And Electricity, 
South Holland District Council,http://statistics.data.gov.uk/id/local-authority/32UF,Capital,Works to Buildings (main Contractor),19/06/2014,IJ00030216,197809.00,Foster Property Maintenance Ltd, 
South Holland District Council,http://statistics.data.gov.uk/id/local-authority/32UF,Housing Landlord Manager,Buildings Maintenance - Responsive,19/06/2014,IJ00030166,165.00,G T S Security, 
South Holland District Council,http://statistics.data.gov.uk/id/local-authority/32UF,Housing,Drainage Rates,19/06/2014,IJ00030166,752.50,G T S Security, 
South Holland District Council,http://statistics.data.gov.uk/id/local-authority/32UF,Community Development,Other Communication Costs,19/06/2014,IJ00030255,700.14,G T S Security, 
South Holland District Council,http://statistics.data.gov.uk/id/local-authority/32UF,Community Development,Other Communication Costs,19/06/2014,IJ00030257,1881.00,G T S Security, 
South Holland District Council,http://statistics.data.gov.uk/id/local-authority/32UF,Housing Landlord Manager,Buildings Maintenance - Responsive,19/06/2014,IJ00030299,600.00,G W Engineering (Lincs) Ltd, 
South Holland District Council,http://statistics.data.gov.uk/id/local-authority/32UF,Housing Landlord Manager,Grounds Maintenance Contract (External),19/06/2014,IJ00030158,595.00,Greenscape Tree Safe Ltd, 
South Holland District Council,http://statistics.data.gov.uk/id/local-authority/32UF,Housing Landlord Manager,Void Decoration,19/06/2014,IJ00030145,708.21,Homebase Limited, 
South Holland District Council,http://statistics.data.gov.uk/id/local-authority/32UF,Housing Landlord Manager,Materials and Consumables,19/06/2014,IJ00030334,993.41,Jackson Buildbase, 
South Holland District Council,http://statistics.data.gov.uk/id/local-authority/32UF,Housing Landlord Manager,Materials and Consumables,19/06/2014,IJ00030338,3732.72,Jackson Buildbase, 
South Holland District Council,http://statistics.data.gov.uk/id/local-authority/32UF,Housing Landlord Manager,Materials and Consumables,19/06/2014,IJ00030338,3626.87,Jackson Buildbase, 
South Holland District Council,http://statistics.data.gov.uk/id/local-authority/32UF,Housing Landlord Manager,Materials and Consumables,19/06/2014,IJ00030338,937.67,Jackson Buildbase, 
South Holland District Council,http://statistics.data.gov.uk/id/local-authority/32UF,Housing Landlord Manager,Agency Staff,19/06/2014,IJ00030140,848.78,James Andrews Recruitment Solutions, 
South Holland District Council,http://statistics.data.gov.uk/id/local-authority/32UF,Housing Landlord Manager,Agency Staff,19/06/2014,IJ00030141,848.78,James Andrews Recruitment Solutions, 
South Holland District Council,http://statistics.data.gov.uk/id/local-authority/32UF,Housing Landlord Manager,Agency Staff,19/06/2014,IJ00030142,745.55,James Andrews Recruitment Solutions, 
South Holland District Council,http://statistics.data.gov.uk/id/local-authority/32UF,Environmental Services,Other Communication Costs,19/06/2014,IJ00030364,1000.00,Redacted Personal Information,REDACTED
South Holland District Council,http://statistics.data.gov.uk/id/local-authority/32UF,Housing Landlord Manager,Void Repairs,19/06/2014,IJ00030225,687.70,L Fragale, 
South Holland District Council,http://statistics.data.gov.uk/id/local-authority/32UF,Community Development,Leisure Management,19/06/2014,IJ00030243,5458.54,Leisure Connection Ltd, 
South Holland District Council,http://statistics.data.gov.uk/id/local-authority/32UF,Community Development,Leisure Management,19/06/2014,IJ00030243,5458.54,Leisure Connection Ltd, 
South Holland District Council,http://statistics.data.gov.uk/id/local-authority/32UF,Finance,Professional & Contractors Fees,19/06/2014,IJ00030110,2325.00,LG FUTURES LTD, 
South Holland District Council,http://statistics.data.gov.uk/id/local-authority/32UF,Democratic Services,Lincolnshire Legal Services,19/06/2014,IJ00030210,8987.08,Lincolnshire County Council, 
South Holland District Council,http://statistics.data.gov.uk/id/local-authority/32UF,Democratic Services,Lincolnshire Legal Services,19/06/2014,IJ00030210,3459.80,Lincolnshire County Council, 
South Holland District Council,http://statistics.data.gov.uk/id/local-authority/32UF,Finance,Professional & Contractors Fees,19/06/2014,IJ00030389,723.53,Lincolnshire County Council, 
South Holland District Council,http://statistics.data.gov.uk/id/local-authority/32UF,Community Development,Buildings Maintenance - Programmed,19/06/2014,IJ00030116,2200.00,LINCOLNSHIRE MASONRY LTD, 
South Holland District Council,http://statistics.data.gov.uk/id/local-authority/32UF,Community Development,License Fees,19/06/2014,IJ00030252,2000.00,Lincolnshire Police Authority, 
South Holland District Council,http://statistics.data.gov.uk/id/local-authority/32UF,Community Development,Subscriptions to Organisations and Other Bodies,19/06/2014,IJ00030254,4000.00,Lincolnshire Sports Partnership Ltd, 
South Holland District Council,http://statistics.data.gov.uk/id/local-authority/32UF,Housing Landlord Manager,Buildings Maintenance - Responsive,19/06/2014,IJ00030411,2498.50,M & R Glass & Glazing Ltd, 
South Holland District Council,http://statistics.data.gov.uk/id/local-authority/32UF,Housing Landlord Manager,Buildings Maintenance - Responsive,19/06/2014,IJ00030411,162.50,M & R Glass & Glazing Ltd, 
South Holland District Council,http://statistics.data.gov.uk/id/local-authority/32UF,Capital,Works to Buildings (main Contractor),19/06/2014,IJ00030238,6498.00,M E Goodyear Property Maintenance, 
South Holland District Council,http://statistics.data.gov.uk/id/local-authority/32UF,Housing,Grants and Contributions to Outside Bodies- No Service Recei,19/06/2014,IJ00030316,5016.00,M E Goodyear Property Maintenance, 
South Holland District Council,http://statistics.data.gov.uk/id/local-authority/32UF,Housing Landlord Manager,Void Repairs,19/06/2014,IJ00030219,3600.00,M Yould Plumbing and Heating Ltd, 
South Holland District Council,http://statistics.data.gov.uk/id/local-authority/32UF,Housing Landlord Manager,Void Repairs,19/06/2014,IJ00030220,4800.00,M Yould Plumbing and Heating Ltd, 
South Holland District Council,http://statistics.data.gov.uk/id/local-authority/32UF,Housing Landlord Manager,Void Repairs,19/06/2014,IJ00030221,5400.00,M Yould Plumbing and Heating Ltd, 
South Holland District Council,http://statistics.data.gov.uk/id/local-authority/32UF,Housing Landlord Manager,Void Repairs,19/06/2014,IJ00030223,5400.00,M Yould Plumbing and Heating Ltd, 
South Holland District Council,http://statistics.data.gov.uk/id/local-authority/32UF,Housing Landlord Manager,Void Repairs,19/06/2014,IJ00030227,3235.56,M Yould Plumbing and Heating Ltd, 
South Holland District Council,http://statistics.data.gov.uk/id/local-authority/32UF,Housing Landlord Manager,Void Repairs,19/06/2014,IJ00030229,3700.00,M Yould Plumbing and Heating Ltd, 
South Holland District Council,http://statistics.data.gov.uk/id/local-authority/32UF,Capital,Works to Buildings (main Contractor),19/06/2014,IJ00030239,1680.00,M Yould Plumbing and Heating Ltd, 
South Holland District Council,http://statistics.data.gov.uk/id/local-authority/32UF,Planning,Professional & Contractors Fees,19/06/2014,IJ00030203,690.00,MatchTech Group Plc, 
South Holland District Council,http://statistics.data.gov.uk/id/local-authority/32UF,Housing,Grants and Contributions to Outside Bodies- No Service Recei,19/06/2014,IJ00030240,4755.00,MPL HOME IMPROVEMENTS SERVICES LINCS LTD, 
South Holland District Council,http://statistics.data.gov.uk/id/local-authority/32UF,Finance,Postages,19/06/2014,IJ00030235,10000.00,NEOPOST LIMITED, 
South Holland District Council,http://statistics.data.gov.uk/id/local-authority/32UF,Housing Landlord Manager,Professional & Contractors Fees,19/06/2014,IJ00030207,2000.00,Northgate Information Solutions Uk Ltd, 
South Holland District Council,http://statistics.data.gov.uk/id/local-authority/32UF,Housing Landlord Manager,Void Repairs,19/06/2014,IJ00030415,1800.00,Robert Dunmore, 
South Holland District Council,http://statistics.data.gov.uk/id/local-authority/32UF,Democratic Services,Other Miscellaneous Expenses,19/06/2014,IJ00030185,1050.00,Sneaths Mill Trust Ltd, 
South Holland District Council,http://statistics.data.gov.uk/id/local-authority/32UF,Democratic Services,Rent and Lease Payments,19/06/2014,IJ00030137,1182.29,SOUTH HOLLAND DISTRICT COUNCIL, 
South Holland District Council,http://statistics.data.gov.uk/id/local-authority/32UF,Housing Landlord Manager,Void Repairs,19/06/2014,IJ00030320,2770.00,South Holland Maintenance Ltd, 
South Holland District Council,http://statistics.data.gov.uk/id/local-authority/32UF,Housing Landlord Manager,Void Repairs,19/06/2014,IJ00030321,3750.00,South Holland Maintenance Ltd, 
South Holland District Council,http://statistics.data.gov.uk/id/local-authority/32UF,Democratic Services,Other Miscellaneous Expenses,19/06/2014,IJ00030413,1500.00,SPALDING PEOPLES PARADE, 
South Holland District Council,http://statistics.data.gov.uk/id/local-authority/32UF,Housing Landlord Manager,Furniture and Equipment,19/06/2014,IJ00030190,1540.00,Spalding Signs Limited, 
South Holland District Council,http://statistics.data.gov.uk/id/local-authority/32UF,Housing Landlord Manager,Void Repairs,19/06/2014,IJ00030224,1150.00,Spotless Cleaning, 
South Holland District Council,http://statistics.data.gov.uk/id/local-authority/32UF,Capital,Works to Buildings (main Contractor),19/06/2014,IJ00030237,1870.00,Stuart Taplin, 
South Holland District Council,http://statistics.data.gov.uk/id/local-authority/32UF,Capital,Works to Buildings (main Contractor),19/06/2014,IJ00030417,9677.44,Sustainable Energy Connection  Ltd, 
South Holland District Council,http://statistics.data.gov.uk/id/local-authority/32UF,Environmental Services,Agency Staff,19/06/2014,IJ00030386,167.16,The Best Connection Group Ltd, 
South Holland District Council,http://statistics.data.gov.uk/id/local-authority/32UF,Environmental Services,Agency Staff,19/06/2014,IJ00030386,728.34,The Best Connection Group Ltd, 
South Holland District Council,http://statistics.data.gov.uk/id/local-authority/32UF,Environmental Services,Agency Staff,19/06/2014,IJ00030386,244.20,The Best Connection Group Ltd, 
South Holland District Council,http://statistics.data.gov.uk/id/local-authority/32UF,Housing Landlord Manager,Furniture and Equipment,19/06/2014,IJ00030341,560.54,VEOLIA ES UK LTD, 
South Holland District Council,http://statistics.data.gov.uk/id/local-authority/32UF,Housing Landlord Manager,Furniture and Equipment,19/06/2014,IJ00030341,560.53,VEOLIA ES UK LTD, 
South Holland District Council,http://statistics.data.gov.uk/id/local-authority/32UF,Housing Landlord Manager,Furniture and Equipment,19/06/2014,IJ00030344,725.64,VEOLIA ES UK LTD, 
South Holland District Council,http://statistics.data.gov.uk/id/local-authority/32UF,Housing Landlord Manager,Furniture and Equipment,19/06/2014,IJ00030344,725.64,VEOLIA ES UK LTD, 
South Holland District Council,http://statistics.data.gov.uk/id/local-authority/32UF,Planning,Telephones,19/06/2014,IJ00030340,66.27,Vodafone Ltd, 
South Holland District Council,http://statistics.data.gov.uk/id/local-authority/32UF,Housing Landlord Manager,Telephones,19/06/2014,IJ00030340,1403.58,Vodafone Ltd, 
South Holland District Council,http://statistics.data.gov.uk/id/local-authority/32UF,Housing Landlord Manager,Telephones,19/06/2014,IJ00030340,30.18,Vodafone Ltd, 
South Holland District Council,http://statistics.data.gov.uk/id/local-authority/32UF,Building Control,Telephones,19/06/2014,IJ00030340,8.67,Vodafone Ltd, 
South Holland District Council,http://statistics.data.gov.uk/id/local-authority/32UF,Democratic Services,Telephones,19/06/2014,IJ00030340,8.43,Vodafone Ltd, 
South Holland District Council,http://statistics.data.gov.uk/id/local-authority/32UF,Democratic Services,Telephones,19/06/2014,IJ00030340,131.22,Vodafone Ltd, 
South Holland District Council,http://statistics.data.gov.uk/id/local-authority/32UF,Democratic Services,Telephones,19/06/2014,IJ00030340,8.43,Vodafone Ltd, 
South Holland District Council,http://statistics.data.gov.uk/id/local-authority/32UF,Asset and Property,Telephones,19/06/2014,IJ00030340,168.75,Vodafone Ltd, 
South Holland District Council,http://statistics.data.gov.uk/id/local-authority/32UF,ICT and Customer Services,Telephones,19/06/2014,IJ00030340,143.43,Vodafone Ltd, 
South Holland District Council,http://statistics.data.gov.uk/id/local-authority/32UF,Revs and Bens,Telephones,19/06/2014,IJ00030340,8.43,Vodafone Ltd, 
South Holland District Council,http://statistics.data.gov.uk/id/local-authority/32UF,Revs and Bens,Telephones,19/06/2014,IJ00030340,16.91,Vodafone Ltd, 
South Holland District Council,http://statistics.data.gov.uk/id/local-authority/32UF,Revs and Bens,Telephones,19/06/2014,IJ00030340,8.43,Vodafone Ltd, 
South Holland District Council,http://statistics.data.gov.uk/id/local-authority/32UF,Planning,Telephones,19/06/2014,IJ00030340,33.72,Vodafone Ltd, 
South Holland District Council,http://statistics.data.gov.uk/id/local-authority/32UF,Planning,Telephones,19/06/2014,IJ00030340,8.43,Vodafone Ltd, 
South Holland District Council,http://statistics.data.gov.uk/id/local-authority/32UF,Planning,Telephones,19/06/2014,IJ00030340,8.43,Vodafone Ltd, 
South Holland District Council,http://statistics.data.gov.uk/id/local-authority/32UF,Planning,Telephones,19/06/2014,IJ00030340,32.19,Vodafone Ltd, 
South Holland District Council,http://statistics.data.gov.uk/id/local-authority/32UF,Building Control,Telephones,19/06/2014,IJ00030340,254.52,Vodafone Ltd, 
South Holland District Council,http://statistics.data.gov.uk/id/local-authority/32UF,Environmental Services,Telephones,19/06/2014,IJ00030340,319.47,Vodafone Ltd, 
South Holland District Council,http://statistics.data.gov.uk/id/local-authority/32UF,Environmental Services,Telephones,19/06/2014,IJ00030340,21.37,Vodafone Ltd, 
South Holland District Council,http://statistics.data.gov.uk/id/local-authority/32UF,Community Development,Telephones,19/06/2014,IJ00030340,23.43,Vodafone Ltd, 
South Holland District Council,http://statistics.data.gov.uk/id/local-authority/32UF,Community Development,Telephones,19/06/2014,IJ00030340,49.48,Vodafone Ltd, 
South Holland District Council,http://statistics.data.gov.uk/id/local-authority/32UF,Environmental Services,Telephones,19/06/2014,IJ00030340,29.21,Vodafone Ltd, 
South Holland District Council,http://statistics.data.gov.uk/id/local-authority/32UF,Environmental Services,Telephones,19/06/2014,IJ00030340,147.10,Vodafone Ltd, 
South Holland District Council,http://statistics.data.gov.uk/id/local-authority/32UF,Housing Landlord Manager,Telephones,19/06/2014,IJ00030340,617.12,Vodafone Ltd, 
South Holland District Council,http://statistics.data.gov.uk/id/local-authority/32UF,Housing Landlord Manager,Telephones,19/06/2014,IJ00030340,53.07,Vodafone Ltd, 
South Holland District Council,http://statistics.data.gov.uk/id/local-authority/32UF,Housing,Telephones,19/06/2014,IJ00030340,90.47,Vodafone Ltd, 
South Holland District Council,http://statistics.data.gov.uk/id/local-authority/32UF,Housing,Telephones,19/06/2014,IJ00030340,108.26,Vodafone Ltd, 
South Holland District Council,http://statistics.data.gov.uk/id/local-authority/32UF,Housing,Telephones,19/06/2014,IJ00030340,153.90,Vodafone Ltd, 
South Holland District Council,http://statistics.data.gov.uk/id/local-authority/32UF,Housing,Telephones,19/06/2014,IJ00030340,41.98,Vodafone Ltd, 
South Holland District Council,http://statistics.data.gov.uk/id/local-authority/32UF,Housing Landlord Manager,Telephones,19/06/2014,IJ00030340,637.22,Vodafone Ltd, 
South Holland District Council,http://statistics.data.gov.uk/id/local-authority/32UF,Housing Landlord Manager,Telephones,19/06/2014,IJ00030340,252.32,Vodafone Ltd, 
South Holland District Council,http://statistics.data.gov.uk/id/local-authority/32UF,Environmental Services,Telephones,19/06/2014,IJ00030340,85.78,Vodafone Ltd, 
South Holland District Council,http://statistics.data.gov.uk/id/local-authority/32UF,Environmental Services,Telephones,19/06/2014,IJ00030340,224.49,Vodafone Ltd, 
South Holland District Council,http://statistics.data.gov.uk/id/local-authority/32UF,Environmental Services,Telephones,19/06/2014,IJ00030340,172.97,Vodafone Ltd, 
South Holland District Council,http://statistics.data.gov.uk/id/local-authority/32UF,Environmental Services,Telephones,19/06/2014,IJ00030340,25.29,Vodafone Ltd, 
South Holland District Council,http://statistics.data.gov.uk/id/local-authority/32UF,Environmental Health,Telephones,19/06/2014,IJ00030340,168.01,Vodafone Ltd, 
South Holland District Council,http://statistics.data.gov.uk/id/local-authority/32UF,Environmental Health,Telephones,19/06/2014,IJ00030340,138.09,Vodafone Ltd, 
South Holland District Council,http://statistics.data.gov.uk/id/local-authority/32UF,Environmental Health,Telephones,19/06/2014,IJ00030340,8.46,Vodafone Ltd, 
South Holland District Council,http://statistics.data.gov.uk/id/local-authority/32UF,Environmental Health,Telephones,19/06/2014,IJ00030340,38.60,Vodafone Ltd, 
South Holland District Council,http://statistics.data.gov.uk/id/local-authority/32UF,Community Development,Telephones,19/06/2014,IJ00030340,41.02,Vodafone Ltd, 
South Holland District Council,http://statistics.data.gov.uk/id/local-authority/32UF,Democratic Services,Telephones,19/06/2014,IJ00030340,8.98,Vodafone Ltd, 
South Holland District Council,http://statistics.data.gov.uk/id/local-authority/32UF,Community Development,Telephones,19/06/2014,IJ00030340,41.41,Vodafone Ltd, 
South Holland District Council,http://statistics.data.gov.uk/id/local-authority/32UF,Community Development,Telephones,19/06/2014,IJ00030340,121.78,Vodafone Ltd, 
South Holland District Council,http://statistics.data.gov.uk/id/local-authority/32UF,Economic Development,Telephones,19/06/2014,IJ00030340,77.72,Vodafone Ltd, 
South Holland District Council,http://statistics.data.gov.uk/id/local-authority/32UF,Economic Development,Telephones,19/06/2014,IJ00030340,16.86,Vodafone Ltd, 
South Holland District Council,http://statistics.data.gov.uk/id/local-authority/32UF,Housing Landlord Manager,Telephones,19/06/2014,IJ00030340,296.71,Vodafone Ltd, 
South Holland District Council,http://statistics.data.gov.uk/id/local-authority/32UF,Housing Landlord Manager,Telephones,19/06/2014,IJ00030340,107.85,Vodafone Ltd, 
South Holland District Council,http://statistics.data.gov.uk/id/local-authority/32UF,Finance,Telephones,19/06/2014,IJ00030340,8.43,Vodafone Ltd, 
South Holland District Council,http://statistics.data.gov.uk/id/local-authority/32UF,Environmental Health,Telephones,19/06/2014,IJ00030340,48.54,Vodafone Ltd, 
South Holland District Council,http://statistics.data.gov.uk/id/local-authority/32UF,Housing Landlord Manager,Telephones,19/06/2014,IJ00030340,8.43,Vodafone Ltd, 
South Holland District Council,http://statistics.data.gov.uk/id/local-authority/32UF,Housing Landlord Manager,Telephones,19/06/2014,IJ00030340,2028.87,Vodafone Ltd, 
South Holland District Council,http://statistics.data.gov.uk/id/local-authority/32UF,Community Development,Telephones,19/06/2014,IJ00030340,16.86,Vodafone Ltd, 
South Holland District Council,http://statistics.data.gov.uk/id/local-authority/32UF,Finance,Telephones,19/06/2014,IJ00030340,48.37,Vodafone Ltd, 
South Holland District Council,http://statistics.data.gov.uk/id/local-authority/32UF,Community Development,Telephones,19/06/2014,IJ00030340,31.16,Vodafone Ltd, 
South Holland District Council,http://statistics.data.gov.uk/id/local-authority/32UF,Community Development,Telephones,19/06/2014,IJ00030340,94.62,Vodafone Ltd, 
South Holland District Council,http://statistics.data.gov.uk/id/local-authority/32UF,Community Development,Telephones,19/06/2014,IJ00030340,32.21,Vodafone Ltd, 
South Holland District Council,http://statistics.data.gov.uk/id/local-authority/32UF,Community Development,Telephones,19/06/2014,IJ00030340,42.86,Vodafone Ltd, 
South Holland District Council,http://statistics.data.gov.uk/id/local-authority/32UF,Economic Development,Telephones,19/06/2014,IJ00030340,61.46,Vodafone Ltd, 
South Holland District Council,http://statistics.data.gov.uk/id/local-authority/32UF,Housing Landlord Manager,Telephones,19/06/2014,IJ00030340,38.31,Vodafone Ltd, 
South Holland District Council,http://statistics.data.gov.uk/id/local-authority/32UF,Environmental Services,Telephones,19/06/2014,IJ00030340,18.91,Vodafone Ltd, 
South Holland District Council,http://statistics.data.gov.uk/id/local-authority/32UF,Environmental Services,Maintenance,19/06/2014,IJ00030384,1289.67,Westons Garden Machinery, 
South Holland District Council,http://statistics.data.gov.uk/id/local-authority/32UF,Capital,Works to Buildings (main Contractor),19/06/2014,IJ00030366,154869.00,Willmott Dixon Partnerships Ltd, 
South Holland District Council,http://statistics.data.gov.uk/id/local-authority/32UF,Environmental Services,Agency Staff,26/06/2014,IJ00030574,265.50,247 Personnel Ltd, 
South Holland District Council,http://statistics.data.gov.uk/id/local-authority/32UF,Environmental Services,Agency Staff,26/06/2014,IJ00030574,531.00,247 Personnel Ltd, 
South Holland District Council,http://statistics.data.gov.uk/id/local-authority/32UF,Environmental Services,Agency Staff,26/06/2014,IJ00030574,135.00,247 Personnel Ltd, 
South Holland District Council,http://statistics.data.gov.uk/id/local-authority/32UF,Capital,Works to Buildings (main Contractor),26/06/2014,IJ00030556,1885.00,Belmont, 
South Holland District Council,http://statistics.data.gov.uk/id/local-authority/32UF,Environmental Services,Agency Staff,26/06/2014,IJ00030449,375.55,Blue Arrow Ltd, 
South Holland District Council,http://statistics.data.gov.uk/id/local-authority/32UF,Environmental Services,Agency Staff,26/06/2014,IJ00030449,1273.83,Blue Arrow Ltd, 
South Holland District Council,http://statistics.data.gov.uk/id/local-authority/32UF,Environmental Services,Agency Staff,26/06/2014,IJ00030449,2247.98,Blue Arrow Ltd, 
South Holland District Council,http://statistics.data.gov.uk/id/local-authority/32UF,Chief Executive,Shared Management,26/06/2014,IJ00030441,40664.34,Breckland Council, 
South Holland District Council,http://statistics.data.gov.uk/id/local-authority/32UF,Building Control,Buildings Maintenance - Programmed,26/06/2014,IJ00030566,910.00,Brooks (Spalding) Ltd, 
South Holland District Council,http://statistics.data.gov.uk/id/local-authority/32UF,Housing Landlord Manager,Fuel & Oil,26/06/2014,IJ00030572,948.80,C H Jones Ltd, 
South Holland District Council,http://statistics.data.gov.uk/id/local-authority/32UF,Environmental Services,Fuel & Oil,26/06/2014,IJ00030572,9.06,C H Jones Ltd, 
South Holland District Council,http://statistics.data.gov.uk/id/local-authority/32UF,Environmental Services,Fuel & Oil,26/06/2014,IJ00030572,426.09,C H Jones Ltd, 
South Holland District Council,http://statistics.data.gov.uk/id/local-authority/32UF,Environmental Services,Fuel & Oil,26/06/2014,IJ00030572,1988.71,C H Jones Ltd, 
South Holland District Council,http://statistics.data.gov.uk/id/local-authority/32UF,Environmental Services,Fuel & Oil,26/06/2014,IJ00030572,746.13,C H Jones Ltd, 
South Holland District Council,http://statistics.data.gov.uk/id/local-authority/32UF,Environmental Services,Fuel & Oil,26/06/2014,IJ00030572,2822.54,C H Jones Ltd, 
South Holland District Council,http://statistics.data.gov.uk/id/local-authority/32UF,Housing Landlord Manager,Fuel & Oil,26/06/2014,IJ00030572,186.79,C H Jones Ltd, 
South Holland District Council,http://statistics.data.gov.uk/id/local-authority/32UF,Housing Landlord Manager,Fuel & Oil,26/06/2014,IJ00030572,200.60,C H Jones Ltd, 
South Holland District Council,http://statistics.data.gov.uk/id/local-authority/32UF,Environmental Services,Fuel & Oil,26/06/2014,IJ00030572,37.15,C H Jones Ltd, 
South Holland District Council,http://statistics.data.gov.uk/id/local-authority/32UF,Environmental Services,Fuel & Oil,26/06/2014,IJ00030572,9.06,C H Jones Ltd, 
South Holland District Council,http://statistics.data.gov.uk/id/local-authority/32UF,Environmental Health,Fuel & Oil,26/06/2014,IJ00030572,37.92,C H Jones Ltd, 
South Holland District Council,http://statistics.data.gov.uk/id/local-authority/32UF,Environmental Services,Fuel & Oil,26/06/2014,IJ00030572,74.45,C H Jones Ltd, 
South Holland District Council,http://statistics.data.gov.uk/id/local-authority/32UF,Housing Landlord Manager,Fuel & Oil,26/06/2014,IJ00030571,54.94,C H Jones Ltd, 
South Holland District Council,http://statistics.data.gov.uk/id/local-authority/32UF,Environmental Services,Fuel & Oil,26/06/2014,IJ00030571,347.40,C H Jones Ltd, 
South Holland District Council,http://statistics.data.gov.uk/id/local-authority/32UF,Environmental Services,Fuel & Oil,26/06/2014,IJ00030571,2072.08,C H Jones Ltd, 
South Holland District Council,http://statistics.data.gov.uk/id/local-authority/32UF,Environmental Services,Fuel & Oil,26/06/2014,IJ00030571,573.77,C H Jones Ltd, 
South Holland District Council,http://statistics.data.gov.uk/id/local-authority/32UF,Environmental Services,Fuel & Oil,26/06/2014,IJ00030571,3382.89,C H Jones Ltd, 
South Holland District Council,http://statistics.data.gov.uk/id/local-authority/32UF,Housing Landlord Manager,Fuel & Oil,26/06/2014,IJ00030571,346.38,C H Jones Ltd, 
South Holland District Council,http://statistics.data.gov.uk/id/local-authority/32UF,Housing Landlord Manager,Fuel & Oil,26/06/2014,IJ00030571,47.79,C H Jones Ltd, 
South Holland District Council,http://statistics.data.gov.uk/id/local-authority/32UF,Environmental Health,Fuel & Oil,26/06/2014,IJ00030571,51.22,C H Jones Ltd, 
South Holland District Council,http://statistics.data.gov.uk/id/local-authority/32UF,Environmental Services,Maintenance,26/06/2014,IJ00030495,655.20,C P Davidson & Sons Ltd, 
South Holland District Council,http://statistics.data.gov.uk/id/local-authority/32UF,Housing Landlord Manager,Other Miscellaneous Expenses,26/06/2014,IJ00030454,875.00,Capita Business Services Ltd, 
South Holland District Council,http://statistics.data.gov.uk/id/local-authority/32UF,Asset and Property,Buildings Maintenance - Responsive,26/06/2014,IJ00030529,510.71,CHEM AQUA, 
South Holland District Council,http://statistics.data.gov.uk/id/local-authority/32UF,Housing Landlord Manager,Other Communication Costs,26/06/2014,IJ00030420,887.07,Cirrus Communication Systems Ltd, 
South Holland District Council,http://statistics.data.gov.uk/id/local-authority/32UF,Environmental Services,Clothing Uniforms And Laundry,26/06/2014,IJ00030551,603.60,Contego Safety Solutions, 
South Holland District Council,http://statistics.data.gov.uk/id/local-authority/32UF,Community Development,Other Miscellaneous Expenses,26/06/2014,IJ00030443,1350.00,Cook Connect Ltd, 
South Holland District Council,http://statistics.data.gov.uk/id/local-authority/32UF,Community Development,Other Miscellaneous Expenses,26/06/2014,IJ00030446,1350.00,Cook Connect Ltd, 
South Holland District Council,http://statistics.data.gov.uk/id/local-authority/32UF,Capital,Purchase of Vehicles,26/06/2014,IJ00030455,128435.00,Dennis Eagle, 
South Holland District Council,http://statistics.data.gov.uk/id/local-authority/32UF,Capital,Purchase of Vehicles,26/06/2014,IJ00030457,128435.00,Dennis Eagle, 
South Holland District Council,http://statistics.data.gov.uk/id/local-authority/32UF,Capital,Purchase of Vehicles,26/06/2014,IJ00030549,128435.00,Dennis Eagle, 
South Holland District Council,http://statistics.data.gov.uk/id/local-authority/32UF,Capital,Purchase of Vehicles,26/06/2014,IJ00030550,128435.00,Dennis Eagle, 
South Holland District Council,http://statistics.data.gov.uk/id/local-authority/32UF,Environmental Services,Road Tax,26/06/2014,IJ00030575,5272.00,Dennis Eagle, 
South Holland District Council,http://statistics.data.gov.uk/id/local-authority/32UF,Environmental Services,Road Tax,26/06/2014,IJ00030575,2981.50,Dennis Eagle, 
South Holland District Council,http://statistics.data.gov.uk/id/local-authority/32UF,Collection Fund,Central Share of NDR Income - Government,26/06/2014,IJ00030517,1322851.00,Department For Communities & Local Government, 
South Holland District Council,http://statistics.data.gov.uk/id/local-authority/32UF,Collection Fund,Transitional Protection Payments,26/06/2014,IJ00030517,-36469.17,Department For Communities & Local Government, 
South Holland District Council,http://statistics.data.gov.uk/id/local-authority/32UF,Finance,Business Rates Tariff,26/06/2014,IJ00030517,689771.00,Department For Communities & Local Government, 
South Holland District Council,http://statistics.data.gov.uk/id/local-authority/32UF,Collection Fund,Contribution to Deficit (NDR),26/06/2014,IJ00030517,-12504.00,Department For Communities & Local Government, 
South Holland District Council,http://statistics.data.gov.uk/id/local-authority/32UF,Collection Fund,Central Share of NDR Income - Government,26/06/2014,IJ00030518,1322851.00,Department For Communities & Local Government, 
South Holland District Council,http://statistics.data.gov.uk/id/local-authority/32UF,Collection Fund,Transitional Protection Payments,26/06/2014,IJ00030518,-43762.00,Department For Communities & Local Government, 
South Holland District Council,http://statistics.data.gov.uk/id/local-authority/32UF,Finance,Business Rates Tariff,26/06/2014,IJ00030518,689770.00,Department For Communities & Local Government, 
South Holland District Council,http://statistics.data.gov.uk/id/local-authority/32UF,Collection Fund,Contribution to Deficit (NDR),26/06/2014,IJ00030518,-12505.00,Department For Communities & Local Government, 
South Holland District Council,http://statistics.data.gov.uk/id/local-authority/32UF,Housing Landlord Manager,Void Repairs,26/06/2014,IJ00030562,7248.00,Elite Decor UK Limited, 
South Holland District Council,http://statistics.data.gov.uk/id/local-authority/32UF,Housing Landlord Manager,Gas,26/06/2014,IJ00030432,643.48,Espo Gas And Electricity, 
South Holland District Council,http://statistics.data.gov.uk/id/local-authority/32UF,HR,Other Employee Expenses,26/06/2014,IJ00030500,75.86,Fideliti Limited, 
South Holland District Council,http://statistics.data.gov.uk/id/local-authority/32UF,Balance Sheet,Payroll SHDC Child Care,26/06/2014,IJ00030500,1896.50,Fideliti Limited, 
South Holland District Council,http://statistics.data.gov.uk/id/local-authority/32UF,Democratic Services,Other Miscellaneous Expenses,26/06/2014,IJ00030582,2370.00,FOGS (Friends of Garth School), 
South Holland District Council,http://statistics.data.gov.uk/id/local-authority/32UF,Housing Landlord Manager,Materials and Consumables,26/06/2014,IJ00030565,1252.64,Jackson Buildbase, 
South Holland District Council,http://statistics.data.gov.uk/id/local-authority/32UF,Housing Landlord Manager,Materials and Consumables,26/06/2014,IJ00030565,2119.09,Jackson Buildbase, 
South Holland District Council,http://statistics.data.gov.uk/id/local-authority/32UF,Housing Landlord Manager,Materials and Consumables,26/06/2014,IJ00030565,283.68,Jackson Buildbase, 
South Holland District Council,http://statistics.data.gov.uk/id/local-authority/32UF,Housing Landlord Manager,Materials and Consumables,26/06/2014,IJ00030513,2895.14,Jackson Buildbase, 
South Holland District Council,http://statistics.data.gov.uk/id/local-authority/32UF,Housing Landlord Manager,Materials and Consumables,26/06/2014,IJ00030513,6538.39,Jackson Buildbase, 
South Holland District Council,http://statistics.data.gov.uk/id/local-authority/32UF,Housing Landlord Manager,Materials and Consumables,26/06/2014,IJ00030513,489.90,Jackson Buildbase, 
South Holland District Council,http://statistics.data.gov.uk/id/local-authority/32UF,Housing Landlord Manager,Materials and Consumables,26/06/2014,IJ00030512,5239.48,Jackson Buildbase, 
South Holland District Council,http://statistics.data.gov.uk/id/local-authority/32UF,Housing Landlord Manager,Materials and Consumables,26/06/2014,IJ00030512,3486.74,Jackson Buildbase, 
South Holland District Council,http://statistics.data.gov.uk/id/local-authority/32UF,Housing Landlord Manager,Materials and Consumables,26/06/2014,IJ00030512,342.68,Jackson Buildbase, 
South Holland District Council,http://statistics.data.gov.uk/id/local-authority/32UF,Housing Landlord Manager,Materials and Consumables,26/06/2014,IJ00030511,4930.13,Jackson Buildbase, 
South Holland District Council,http://statistics.data.gov.uk/id/local-authority/32UF,Housing Landlord Manager,Materials and Consumables,26/06/2014,IJ00030511,4605.01,Jackson Buildbase, 
South Holland District Council,http://statistics.data.gov.uk/id/local-authority/32UF,Housing Landlord Manager,Materials and Consumables,26/06/2014,IJ00030511,1471.53,Jackson Buildbase, 
South Holland District Council,http://statistics.data.gov.uk/id/local-authority/32UF,Capital,Works to Buildings (main Contractor),26/06/2014,IJ00030511,43910.54,Jackson Buildbase, 
South Holland District Council,http://statistics.data.gov.uk/id/local-authority/32UF,Finance,External Audit Fees,26/06/2014,IJ00030442,16650.50,Kpmg Tax, 
South Holland District Council,http://statistics.data.gov.uk/id/local-authority/32UF,Environmental Services,Materials and Consumables,26/06/2014,IJ00030515,1536.79,Lms Lincoln Ltd, 
South Holland District Council,http://statistics.data.gov.uk/id/local-authority/32UF,Capital,Works to Buildings (main Contractor),26/06/2014,IJ00030468,2284.00,M E Goodyear Property Maintenance, 
South Holland District Council,http://statistics.data.gov.uk/id/local-authority/32UF,ICT and Customer Services,Computer Software Licence Costs,26/06/2014,IJ00030548,6670.00,MODERN MINDSET LTD, 
South Holland District Council,http://statistics.data.gov.uk/id/local-authority/32UF,Housing Landlord Manager,Other Communication Costs,26/06/2014,IJ00030428,6131.86,Northern Housing Consortium Ltd, 
South Holland District Council,http://statistics.data.gov.uk/id/local-authority/32UF,Environmental Services,Commercial Vehicle Lease,26/06/2014,IJ00030516,710.65,NORTHRIDGE FINANCE LTD, 
South Holland District Council,http://statistics.data.gov.uk/id/local-authority/32UF,Housing Landlord Manager,Void Repairs,26/06/2014,IJ00030561,780.00,Robert Dunmore, 
South Holland District Council,http://statistics.data.gov.uk/id/local-authority/32UF,Housing Landlord Manager,Professional & Contractors Fees,26/06/2014,IJ00030506,5000.00,SAVILLS, 
South Holland District Council,http://statistics.data.gov.uk/id/local-authority/32UF,Democratic Services,Other Miscellaneous Expenses,26/06/2014,IJ00030514,500.00,SPALDING PEOPLES PARADE, 
South Holland District Council,http://statistics.data.gov.uk/id/local-authority/32UF,Housing Landlord Manager,Void Repairs,26/06/2014,IJ00030560,520.00,Spotless Cleaning, 
South Holland District Council,http://statistics.data.gov.uk/id/local-authority/32UF,Economic Development,Grants and Contributions to Outside Bodies- No Service Recei,26/06/2014,IJ00030476,4130.00,Sutton Bridge Parish Council, 
South Holland District Council,http://statistics.data.gov.uk/id/local-authority/32UF,Community Development,Buildings Maintenance - Responsive,26/06/2014,IJ00030453,638.00,Teams, 
South Holland District Council,http://statistics.data.gov.uk/id/local-authority/32UF,Environmental Services,Agency Staff,26/06/2014,IJ00030437,506.88,The Best Connection Group Ltd, 
South Holland District Council,http://statistics.data.gov.uk/id/local-authority/32UF,Democratic Services,Course Fees,26/06/2014,IJ00030564,525.00,The Institute Of Licensing (Events) Ltd, 
South Holland District Council,http://statistics.data.gov.uk/id/local-authority/32UF,Housing Landlord Manager,Buildings Maintenance - Responsive,26/06/2014,IJ00030521,780.00,The Right Move, 
South Holland District Council,http://statistics.data.gov.uk/id/local-authority/32UF,Finance,Fees and Charges General,26/06/2014,IJ00030501,-31.27,UNISON, 
South Holland District Council,http://statistics.data.gov.uk/id/local-authority/32UF,Balance Sheet,Payroll-Unison,26/06/2014,IJ00030501,1250.90,UNISON, 
South Holland District Council,http://statistics.data.gov.uk/id/local-authority/32UF,Environmental Services,Professional & Contractors Fees,26/06/2014,IJ00030425,980.00,West & East Anglia Asbestos Removals Ltd, 
